bitfinex-derivatives/quotes_BTCF0:USTF0_20250711
["timestamp","ask_amount","ask_price","bid_price","bid_amount"]
[1752253855774,0.02124377,117730.0,117720.0,1.05936106]
[1752253856884,0.005,117730.0,117720.0,1.05936106]
[1752253857080,0.08128903,117730.0,117720.0,1.05936106]
[1752253857480,0.07928903,117730.0,117720.0,1.05936106]
[1752253857685,0.07928903,117730.0,117720.0,1.06036106]
[1752253858185,0.07828903,117730.0,117720.0,1.06236106]
[1752253858380,0.002,117730.0,117720.0,1.06336106]
[1752253858578,0.002,117730.0,117720.0,1.06136106]
[1752253858778,0.002,117730.0,117720.0,1.23424905]
[1752253858975,0.1067491,117750.0,117740.0,0.1697897]
[1752253859181,0.1067491,117750.0,117740.0,2.59757226]
[1752253859375,0.1067491,117750.0,117740.0,2.76742826]
[1752253859780,0.06220627,117760.0,117750.0,0.1697753]
[1752253859983,0.03424,117770.0,117760.0,0.1697609]
[1752253860184,0.08004,117770.0,117760.0,2.23800346]
[1752253861090,0.0478,117770.0,117760.0,2.23800346]
[1752253861283,0.0478,117770.0,117760.0,2.40783546]
[1752253861284,0.002,117770.0,117760.0,2.40783546]
[1752253862283,0.06281648,117770.0,117760.0,2.40783546]
[1752253862484,0.0628178,117770.0,117760.0,2.90783546]
[1752253863482,0.0628178,117770.0,117760.0,2.4389929]
[1752253863677,0.0638178,117770.0,117760.0,2.90783546]
[1752253863884,0.0638178,117770.0,117760.0,2.97707756]
[1752253864085,9e-08,117780.0,117770.0,0.0848713]
[1752253864379,0.08004,117810.0,117800.0,0.1697032]
[1752253864582,0.08004,117810.0,117800.0,2.1148429]
[1752253864583,0.14394,117810.0,117800.0,2.1148429]
[1752253864990,0.3136288,117810.0,117800.0,2.1148429]
[1752253865588,0.14394,117810.0,117800.0,2.1148429]
[1752253866088,0.0478,117810.0,117800.0,2.58368546]
[1752253866289,0.0478,117810.0,117800.0,2.61548546]
[1752253866588,0.08004,117810.0,117800.0,2.1467429]
[1752253867185,0.08004,117810.0,117800.0,2.61558546]
[1752253867581,0.08004,117810.0,117800.0,2.59800576]
[1752253867785,0.08004,117810.0,117800.0,2.59820576]
[1752253867786,0.08024,117810.0,117800.0,2.59820576]
[1752253867988,0.15615514,117810.0,117800.0,2.59820576]
[1752253868187,0.15615514,117810.0,117800.0,2.61567407]
[1752253868389,0.08024,117810.0,117800.0,2.61567407]
[1752253868589,0.08024,117810.0,117800.0,2.62405626]
[1752253868788,0.1869891,117810.0,117800.0,2.62405626]
[1752253869390,0.1869891,117810.0,117800.0,2.1552137]
[1752253869591,0.08024,117810.0,117800.0,2.14683151]
[1752253869791,0.2499288,117810.0,117800.0,2.11503151]
[1752253869995,0.2519891,117810.0,117800.0,2.11503151]
[1752253870395,0.4216779,117810.0,117800.0,2.11503151]
[1752253870887,0.3149288,117810.0,117800.0,2.11503151]
[1752253871089,0.14524,117810.0,117800.0,2.11503151]
[1752253871282,0.3149288,117810.0,117800.0,0.90931407]
[1752253871488,0.78377136,117810.0,117800.0,0.18771407]
[1752253871788,0.89052046,117810.0,117800.0,0.18771427]
[1752253871990,0.4216779,117810.0,117800.0,0.18771427]
[1752253872190,0.89052046,117810.0,117800.0,0.18771427]
[1752253872386,0.2519891,117810.0,117800.0,0.54851427]
[1752253872981,0.2519891,117810.0,117800.0,1.01735683]
[1752253873591,0.2519891,117810.0,117800.0,1.05055683]
[1752253874192,0.2519891,117810.0,117800.0,1.01735683]
[1752253875095,0.2519891,117810.0,117800.0,0.54851427]
[1752253876996,0.2519891,117810.0,117800.0,1.01735683]
[1752253877196,0.2519891,117810.0,117800.0,0.54851427]
[1752253877397,0.2519891,117810.0,117800.0,1.01735683]
[1752253878192,0.2519891,117810.0,117800.0,0.54851427]
[1752253878393,0.14504,117810.0,117800.0,0.43385014]
[1752253878587,0.14504,117810.0,117800.0,0.45175106]
[1752253878791,0.07779159,117810.0,117800.0,0.92059362]
[1752253878987,0.07779159,117810.0,117800.0,0.98439362]
[1752253879394,0.04751,117810.0,117800.0,0.98439362]
[1752253879691,0.002,117810.0,117800.0,1.45323618]
[1752253879897,0.002,117810.0,117800.0,0.51555106]
[1752253880088,0.002,117810.0,117800.0,1.28429362]
[1752253880991,0.002,117810.0,117800.0,1.78429362]
[1752253882599,0.002,117810.0,117800.0,1.78529362]
[1752253885293,0.002,117810.0,117800.0,1.31645106]
[1752253885500,0.002,117810.0,117800.0,1.78529362]
[1752253886900,0.002,117810.0,117800.0,2.42391217]
[1752253887296,1e-07,117810.0,117800.0,2.42391217]
[1752253887798,0.0776201,117810.0,117800.0,0.95275106]
[1752253887998,0.1411201,117810.0,117800.0,0.95275106]
[1752253888199,0.21691169,117810.0,117800.0,0.95475106]
[1752253888403,0.1411201,117810.0,117800.0,0.95475106]
[1752253888698,0.3108092,117810.0,117800.0,0.95575106]
[1752253889106,0.3108092,117810.0,117800.0,0.45575106]
[1752253889305,0.3108092,117810.0,117800.0,1.06671106]
[1752253889904,0.3108092,117810.0,117800.0,1.06627106]
[1752253890807,0.3108092,117810.0,117800.0,0.45575106]
[1752253891009,0.77965176,117810.0,117800.0,0.09495106]
[1752253891306,0.77965176,117810.0,117800.0,0.18960462]
[1752253892209,0.3108092,117810.0,117800.0,0.18960462]
[1752253892503,0.77965176,117810.0,117800.0,0.18860462]
[1752253892704,0.77965176,117810.0,117800.0,0.18660732]
[1752253893504,0.3108092,117810.0,117800.0,0.18660732]
[1752253893706,0.1411201,117810.0,117800.0,0.18660732]
[1752253893910,0.3108094,117810.0,117800.0,0.54740732]
[1752253894111,0.3108094,117810.0,117800.0,0.18660732]
[1752253894313,0.38660099,117810.0,117800.0,0.18660732]
[1752253895409,0.3108094,117810.0,117800.0,0.18660732]
[1752253895610,0.3110094,117810.0,117800.0,0.18680732]
[1752253896415,0.3110094,117810.0,117800.0,0.54760732]
[1752253896910,0.1413201,117810.0,117800.0,0.54760732]
[1752253897114,0.1413201,117810.0,117800.0,1.01644988]
[1752253897309,0.3110094,117810.0,117800.0,1.01644988]
[1752253897711,0.1413201,117810.0,117800.0,1.01644988]
[1752253898318,0.1413201,117810.0,117800.0,0.54760732]
[1752253898519,0.1413201,117810.0,117800.0,1.01644988]
[1752253898721,0.3110094,117810.0,117800.0,1.01644988]
[1752253898925,0.3110094,117810.0,117800.0,0.54760732]
[1752253899222,0.1413201,117810.0,117800.0,0.54760732]
[1752253900423,0.1413201,117810.0,117800.0,1.15716732]
[1752253902122,0.1413201,117810.0,117800.0,1.62600988]
[1752253903720,0.1092101,117810.0,117800.0,1.62600988]
[1752253903921,0.1412501,117810.0,117800.0,1.69170988]
[1752253904627,0.1412501,117810.0,117800.0,1.65840988]
[1752253906224,0.0457101,117810.0,117800.0,1.65840988]
[1752253906432,0.0002001,117810.0,117800.0,1.68930988]
[1752253906926,0.0002001,117810.0,117800.0,1.98920988]
[1752253908234,0.0002001,117810.0,117800.0,2.48920988]
[1752253910231,1e-07,117810.0,117800.0,2.48920988]
[1752253910440,1e-07,117810.0,117800.0,2.48900988]
[1752253910736,1e-07,117810.0,117800.0,2.65878587]
[1752253911131,1e-07,117810.0,117800.0,2.66048359]
[1752253912529,0.02789439,117820.0,117810.0,0.1696899]
[1752253912738,0.07905,117840.0,117830.0,0.1696611]
[1752253912937,0.07905,117840.0,117830.0,2.59281814]
[1752253913134,0.07905,117840.0,117830.0,2.65601814]
[1752253913535,0.07905,117840.0,117830.0,2.66465154]
[1752253915435,0.07905,117840.0,117830.0,2.73157756]
[1752253915637,0.07905,117840.0,117830.0,2.262735]
[1752253915842,0.14515,117840.0,117830.0,2.262735]
[1752253916241,0.14515,117840.0,117830.0,2.73157756]
[1752253916539,0.14515,117840.0,117830.0,2.262735]
[1752253916842,0.14515,117840.0,117830.0,2.73157756]
[1752253917034,0.14515,117840.0,117830.0,2.262735]
[1752253917238,0.14515,117840.0,117830.0,2.199535]
[1752253919440,0.35171668,117850.0,117840.0,0.1696468]
[1752253919644,0.41541668,117850.0,117840.0,0.5304468]
[1752253919840,0.35217668,117850.0,117840.0,0.5304468]
[1752253920045,0.38421668,117850.0,117840.0,0.5304468]
[1752253920233,0.41541668,117850.0,117840.0,0.5304468]
[1752253920438,0.3992001,117850.0,117840.0,0.5304468]
[1752253920942,0.79862643,117850.0,117840.0,0.1696468]
[1752253921338,0.79862643,117850.0,117830.0,1.7198068]
[1752253921339,1.20183763,117850.0,117830.0,1.7198068]
[1752253921535,0.70982343,117840.0,117830.0,0.2301891]
[1752253921947,0.3103971,117840.0,117830.0,0.2301891]
[1752253922141,0.70982343,117840.0,117830.0,0.2301891]
[1752253922342,0.3103971,117840.0,117830.0,0.2301891]
[1752253922547,0.70982343,117840.0,117830.0,0.2301891]
[1752253923048,0.77859452,117840.0,117830.0,0.2301891]
[1752253923344,0.3103971,117840.0,117830.0,0.5909891]
[1752253923846,0.38652656,117840.0,117830.0,0.59087205]
[1752253924746,0.38652656,117840.0,117830.0,0.23007205]
[1752253925440,0.38652656,117840.0,117830.0,0.1697615]
[1752253925441,1.38525198,117840.0,117830.0,0.1697615]
[1752253925647,1.30912252,117840.0,117830.0,0.1697615]
[1752253925848,1.30912252,117840.0,117830.0,0.0001]
[1752253926144,1.30912252,117840.0,117830.0,0.1697615]
[1752253926348,0.8409251,117840.0,117830.0,0.1697615]
[1752253926545,1.30912252,117840.0,117830.0,0.1697615]
[1752253926739,1.13939452,117840.0,117830.0,0.1697615]
[1752253927240,1.24550274,117840.0,117830.0,0.0001]
[1752253927439,0.2487119,117830.0,117820.0,0.1873078]
[1752253927636,1.48019756,117830.0,117820.0,0.1873078]
[1752253928043,1.51014406,117830.0,117820.0,0.1873078]
[1752253928238,1.58630821,117830.0,117820.0,0.1873078]
[1752253928444,1.48019999,117830.0,117820.0,0.1873078]
[1752253928737,1.87094406,117830.0,117820.0,0.1873078]
[1752253928936,1.51014406,117830.0,117820.0,0.1873078]
[1752253929138,0.2511907,117810.0,117800.0,0.36249772]
[1752253929342,0.1697195,117790.0,117780.0,0.14527097]
[1752253929536,1.32797692,117790.0,117780.0,0.31499201]
[1752253929743,0.09766786,117790.0,117780.0,1.15299528]
[1752253929942,0.09766786,117790.0,117780.0,0.67615201]
[1752253929943,0.26738736,117790.0,117780.0,0.67615201]
[1752253930142,0.79858478,117790.0,117780.0,0.63371861]
[1752253930343,0.79858478,117790.0,117780.0,0.59128611]
[1752253930548,1.32918478,117790.0,117780.0,0.0062]
[1752253930847,1.65536004,117790.0,117780.0,0.0062]
[1752253931049,1.58788632,117790.0,117780.0,0.0062]
[1752253931249,1.66406158,117790.0,117780.0,0.0062]
[1752253931446,2.19704632,117790.0,117780.0,0.0063]
[1752253931653,1.77724632,117790.0,117780.0,0.1760339]
[1752253932150,0.93938736,117790.0,117780.0,0.1700339]
[1752253932351,1.40758478,117790.0,117780.0,0.0013]
[1752253932543,1.76838478,117790.0,117780.0,0.0013]
[1752253932945,1.76838478,117790.0,117780.0,0.1700339]
[1752253933754,1.84456004,117790.0,117780.0,0.1700339]
[1752253934152,1.85315549,117790.0,117780.0,0.1700339]
[1752253934652,1.77698023,117790.0,117780.0,0.1700339]
[1752253935048,1.84559306,117790.0,117780.0,0.1700339]
[1752253935850,0.39900019,117790.0,117780.0,0.1700339]
[1752253936048,0.93886736,117790.0,117780.0,0.5309939]
[1752253936449,1.76786478,117790.0,117780.0,0.1700339]
[1752253937455,1.29966736,117790.0,117780.0,0.1700339]
[1752253937649,1.29966736,117790.0,117780.0,0.0003]
[1752253937650,1.76786478,117790.0,117780.0,0.0003]
[1752253937849,0.2024084,117770.0,117760.0,0.2563252]
[1752253938153,1.3438551,117770.0,117760.0,0.1714468]
[1752253938455,1.4065551,117770.0,117760.0,0.1714468]
[1752253938653,1.4065551,117770.0,117760.0,0.0016983]
[1752253938855,1.7673551,117770.0,117760.0,0.0016983]
[1752253939258,1.9371871,117770.0,117760.0,0.0026983]
[1752253939759,1.7673551,117770.0,117760.0,0.0026983]
[1752253941248,0.2024229,117760.0,117750.0,0.2999]
[1752253941453,0.2512773,117750.0,117740.0,0.6154727]
[1752253941652,1.40913222,117750.0,117740.0,0.6154727]
[1752253942356,1.40913222,117750.0,117740.0,0.6204327]
[1752253943053,1.40913222,117750.0,117740.0,0.6154727]
[1752253943555,0.2024517,117740.0,117730.0,0.58640019]
[1752253943750,0.78168912,117740.0,117730.0,0.22560019]
[1752253943956,0.78168912,117740.0,117730.0,0.22064019]
[1752253944757,0.78168912,117740.0,117730.0,0.22264019]
[1752253946159,0.78168912,117740.0,117730.0,0.2142446]
[1752253947762,0.78168912,117740.0,117730.0,0.2122446]
[1752253949858,0.78168912,117740.0,117730.0,0.2132446]
[1752253950459,0.20451945,117740.0,117730.0,0.2182046]
[1752253950764,0.14231945,117740.0,117730.0,1.05030202]
[1752253951063,0.10965945,117740.0,117730.0,1.11360202]
[1752253951464,0.10965945,117740.0,117730.0,0.6454046]
[1752253951662,0.10965945,117740.0,117730.0,1.11360202]
[1752253952164,0.14231945,117740.0,117730.0,1.11360202]
[1752253952366,0.0815,117740.0,117730.0,1.11360202]
[1752253952858,0.15873008,117750.0,117740.0,0.1778512]
[1752253953063,0.32850688,117750.0,117740.0,1.06954862]
[1752253953466,0.15873008,117750.0,117740.0,1.06954862]
[1752253954559,0.09791063,117750.0,117740.0,1.06954862]
[1752253954759,0.09811063,117750.0,117740.0,1.06974862]
[1752253955362,0.15887445,117750.0,117740.0,0.6015512]
[1752253957567,0.15887445,117750.0,117740.0,1.06974862]
[1752253958468,0.14246382,117750.0,117740.0,1.08736178]
[1752253959063,0.15787526,117750.0,117740.0,1.08736178]
[1752253959764,0.79584958,117750.0,117740.0,0.61606436]
[1752253960268,0.86044958,117750.0,117740.0,0.61606436]
[1752253960656,0.86044958,117750.0,117740.0,0.18760436]
[1752253960657,0.92124382,117750.0,117740.0,0.18760436]
[1752253960856,0.78427432,117750.0,117740.0,0.18760436]
[1752253961068,1.48008958,117750.0,117740.0,0.18760436]
[1752253961969,1.48008958,117750.0,117740.0,0.18780632]
[1752253962767,1.40391432,117750.0,117740.0,0.18780632]
[1752253964264,1.40391432,117750.0,117740.0,0.18780642]
[1752253964771,1.48008958,117750.0,117740.0,0.18780642]
[1752253965164,1.76471432,117750.0,117740.0,0.18780642]
[1752253965360,1.40391432,117750.0,117740.0,0.18780642]
[1752253966974,1.33590139,117750.0,117740.0,0.18780642]
[1752253968671,1.44200961,117750.0,117740.0,0.1699913]
[1752253969267,1.80280961,117750.0,117740.0,0.0002]
[1752253969476,1.77276429,117750.0,117740.0,0.1699913]
[1752253969772,1.69670139,117750.0,117740.0,0.1699913]
[1752253970164,0.6768769,117750.0,117740.0,0.1699913]
[1752253970368,0.9324369,117750.0,117740.0,0.5357513]
[1752253970971,1.0084998,117750.0,117740.0,0.5357513]
[1752253971173,1.0084998,117750.0,117740.0,0.1749513]
[1752253971776,1.02468249,117750.0,117740.0,0.1749513]
[1752253972471,0.33225959,117750.0,117740.0,0.93593579]
[1752253972775,1.05408781,117750.0,117740.0,0.5660513]
[1752253973172,1.4542723,117750.0,117740.0,0.5357513]
[1752253973369,1.4542723,117750.0,117740.0,0.1749513]
[1752253973969,1.4547586,117750.0,117740.0,0.1749513]
[1752253975372,1.45479018,117750.0,117740.0,0.1749513]
[1752253976279,1.45479018,117750.0,117740.0,0.1699913]
[1752253976881,1.45489575,117750.0,117740.0,0.1699913]
[1752253978179,1.58203385,117750.0,117730.0,0.57864705]
[1752253978376,0.2825712,117740.0,117730.0,0.35016195]
[1752253978577,0.75905703,117740.0,117730.0,0.30771125]
[1752253978776,0.75905703,117740.0,117730.0,0.27741125]
[1752253978980,0.79185703,117740.0,117730.0,0.27245125]
[1752253979576,0.79185703,117740.0,117730.0,0.27345125]
[1752253979875,0.79185703,117740.0,117730.0,0.27445125]
[1752253980277,0.79185703,117740.0,117730.0,0.2567052]
[1752253981279,1.40701703,117740.0,117730.0,0.2567052]
[1752253981886,1.00683254,117740.0,117730.0,0.6224652]
[1752253982079,0.32627254,117740.0,117730.0,0.6859652]
[1752253982383,0.94159254,117740.0,117730.0,0.6859652]
[1752253984673,0.12474134,117740.0,117730.0,1.08924969]
[1752253984878,0.12474134,117740.0,117730.0,1.70380969]
[1752253985083,0.07630134,117740.0,117730.0,1.70380969]
[1752253985278,0.17269561,117750.0,117740.0,0.1778512]
[1752253985480,0.17269561,117750.0,117740.0,1.00293569]
[1752253985983,0.32727611,117750.0,117740.0,1.00293569]
[1752253986580,0.32727611,117750.0,117740.0,0.5996512]
[1752253986779,0.7274606,117750.0,117740.0,0.5671512]
[1752253986984,0.72705546,117750.0,117740.0,0.2063512]
[1752253987178,0.83375555,117750.0,117740.0,0.2063512]
[1752253987785,0.83375555,117750.0,117740.0,0.5671512]
[1752253988184,0.83475555,117750.0,117740.0,0.5671512]
[1752253988393,0.72805546,117750.0,117740.0,0.5671512]
[1752253989187,0.83475555,117750.0,117740.0,0.5671512]
[1752253989388,0.91114226,117750.0,117740.0,0.5671512]
[1752253989682,0.80444217,117750.0,117740.0,0.1697912]
[1752253990480,0.72805546,117750.0,117740.0,0.1697912]
[1752253990675,0.72805546,117750.0,117740.0,0.5355512]
[1752253990884,1.44867555,117750.0,117740.0,0.5998512]
[1752253992189,1.44867555,117750.0,117740.0,0.5670512]
[1752253992486,1.44867555,117750.0,117740.0,0.5620912]
[1752253993187,1.44867555,117750.0,117740.0,0.5305912]
[1752253993786,1.52506499,117750.0,117740.0,0.5305912]
[1752253993987,1.4183649,117750.0,117740.0,0.5305912]
[1752253995687,1.4168449,117750.0,117740.0,0.5355512]
[1752253995887,1.4170449,117750.0,117740.0,0.5357512]
[1752253997194,1.4167249,117750.0,117740.0,0.5357512]
[1752253997989,1.4167249,117750.0,117740.0,0.530791]
[1752253998194,1.70113546,117750.0,117740.0,0.169991]
[1752253998397,1.7775249,117750.0,117740.0,0.169991]
[1752253999503,1.7775249,117750.0,117740.0,0.0002]
[1752253999701,0.2492554,117730.0,117720.0,0.06978354]
[1752253999900,1.7136147,117730.0,117720.0,0.00169887]
[1752254000105,1.7768147,117730.0,117720.0,0.00169887]
[1752254000602,2.17699919,117730.0,117720.0,0.00169887]
[1752254000907,1.70042664,117730.0,117720.0,0.00369887]
[1752254001101,2.10061113,117730.0,117720.0,0.00369887]
[1752254001304,2.20731122,117730.0,117720.0,0.00369887]
[1752254001805,1.80712673,117730.0,117720.0,0.00369887]
[1752254002107,1.81580819,117730.0,117720.0,0.00369887]
[1752254002801,1.81580819,117730.0,117720.0,0.00569887]
[1752254003103,0.8045037,117730.0,117720.0,0.17551867]
[1752254003303,1.70022664,117730.0,117720.0,0.17251867]
[1752254003502,1.33942664,117730.0,117720.0,0.17251867]
[1752254003698,0.72850664,117730.0,117720.0,0.17779867]
[1752254003903,1.01532743,117730.0,117720.0,0.17779867]
[1752254004307,0.40468743,117730.0,117720.0,0.17779867]
[1752254004508,0.40468743,117730.0,117720.0,0.17679867]
[1752254004703,1.01524743,117730.0,117720.0,0.24079867]
[1752254005209,0.40468743,117730.0,117720.0,0.60159867]
[1752254005397,0.17167601,117730.0,117720.0,1.00508316]
[1752254005798,0.09531675,117730.0,117720.0,1.00508316]
[1752254006101,0.04938,117730.0,117720.0,1.30498316]
[1752254006908,0.04938,117730.0,117720.0,1.37367654]
[1752254008309,0.11046412,117730.0,117720.0,1.37367654]
[1752254009410,0.04938,117730.0,117720.0,1.37367654]
[1752254010606,0.12573926,117740.0,117730.0,0.1783854]
[1752254010808,0.15580926,117740.0,117730.0,0.6207732]
[1752254011008,0.15580926,117740.0,117730.0,1.69953107]
[1752254011811,0.15580926,117740.0,117730.0,1.70823125]
[1752254013516,0.07945,117740.0,117730.0,1.23935338]
[1752254014211,0.07945,117740.0,117730.0,1.70823125]
[1752254016209,0.07945,117740.0,117730.0,1.23935338]
[1752254016410,0.07965,117740.0,117730.0,1.23955338]
[1752254016805,0.249441,117740.0,117730.0,1.23955338]
[1752254017212,0.07965,117740.0,117730.0,1.23955338]
[1752254017410,0.15600926,117740.0,117730.0,1.23955338]
[1752254017813,0.32580026,117740.0,117730.0,1.23955338]
[1752254018513,0.249441,117740.0,117730.0,1.23955338]
[1752254019913,0.07965,117740.0,117730.0,1.23955338]
[1752254020414,0.249441,117740.0,117730.0,1.23955338]
[1752254020613,0.07965,117740.0,117730.0,1.23955338]
[1752254020914,0.18654714,117740.0,117730.0,1.23955338]
[1752254021705,0.35633814,117740.0,117730.0,1.23625338]
[1752254021912,0.41933814,117740.0,117730.0,1.23625338]
[1752254022117,0.20373304,117740.0,117730.0,1.23955338]
[1752254022312,0.14073304,117740.0,117730.0,1.23955338]
[1752254022513,0.31052404,117740.0,117730.0,1.23955338]
[1752254022715,0.31052404,117740.0,117730.0,0.62967338]
[1752254022909,0.77940191,117740.0,117730.0,0.8005932]
[1752254023213,0.78131887,117740.0,117730.0,1.1613932]
[1752254023612,0.78131887,117740.0,117730.0,1.1614932]
[1752254026317,0.2190038,117740.0,117730.0,0.5541732]
[1752254026508,0.312441,117740.0,117730.0,0.5541732]
[1752254026822,0.88822431,117740.0,117730.0,0.5541732]
[1752254027017,0.24955544,117740.0,117730.0,0.5541732]
[1752254027210,0.41934644,117740.0,117730.0,0.5361854]
[1752254027417,0.24955544,117740.0,117730.0,0.5361854]
[1752254027621,0.41934644,117740.0,117730.0,0.61754603]
[1752254027811,0.41934644,117740.0,117730.0,1.22482603]
[1752254028415,0.49570636,117740.0,117730.0,1.22482603]
[1752254028820,0.38880092,117740.0,117730.0,1.22482603]
[1752254029716,0.21900992,117740.0,117730.0,1.22482603]
[1752254029917,0.18850992,117740.0,117730.0,1.22812603]
[1752254030816,0.18850992,117740.0,117730.0,1.2101654]
[1752254031222,0.04958,117740.0,117730.0,1.61029933]
[1752254031417,0.04958,117740.0,117730.0,1.62771721]
[1752254031617,0.04958,117740.0,117730.0,1.22758328]
[1752254031814,0.04958,117740.0,117730.0,1.62771721]
[1752254033519,0.15648544,117740.0,117730.0,1.62771721]
[1752254035125,0.04958,117740.0,117730.0,1.62771721]
[1752254035621,0.15648544,117740.0,117730.0,1.62771721]
[1752254036727,0.32627644,117740.0,117730.0,1.62771721]
[1752254036928,0.15648544,117740.0,117730.0,1.62771721]
[1752254037125,0.35782644,117740.0,117730.0,1.62771721]
[1752254037326,0.82326037,117740.0,117730.0,1.15972328]
[1752254037526,1.15360471,117740.0,117730.0,0.18752328]
[1752254037726,1.68275493,117740.0,117730.0,0.01771788]
[1752254037930,1.78966037,117740.0,117730.0,0.01771788]
[1752254038228,1.78966037,117740.0,117730.0,0.18752328]
[1752254038628,0.07841,117710.0,117700.0,0.6518733]
[1752254038828,1.26995918,117710.0,117700.0,0.35777319]
[1752254039131,1.70720659,117710.0,117700.0,0.14546989]
[1752254039328,1.70720659,117710.0,117700.0,0.26766859]
[1752254039520,1.10172659,117710.0,117700.0,0.09781989]
[1752254039725,1.70720659,117710.0,117700.0,0.09781989]
[1752254039921,0.2482731,117690.0,117680.0,0.26781844]
[1752254040124,1.00920703,117690.0,117680.0,0.26781844]
[1752254040329,1.07033778,117690.0,117680.0,0.26781844]
[1752254040531,1.41772151,117690.0,117680.0,0.01917084]
[1752254040737,1.01758758,117690.0,117680.0,0.01917084]
[1752254040923,1.25696507,117690.0,117680.0,0.01917084]
[1752254041123,1.25696507,117690.0,117680.0,0.00169945]
[1752254041329,1.27325844,117690.0,117680.0,0.00169945]
[1752254041732,1.93915844,117690.0,117680.0,0.00169945]
[1752254043035,2.00019737,117690.0,117680.0,0.00169945]
[1752254043235,0.248302,117670.0,117660.0,0.2548488]
[1752254043436,1.33983899,117670.0,117660.0,0.2548488]
[1752254043629,1.40453899,117670.0,117660.0,0.2548488]
[1752254043831,1.4809864,117670.0,117660.0,0.2859688]
[1752254044331,0.17098698,117670.0,117660.0,0.6944188]
[1752254044634,0.70009957,117670.0,117660.0,0.7571188]
[1752254045336,0.76110254,117670.0,117660.0,0.7571188]
[1752254045934,0.10856254,117670.0,117660.0,1.22668622]
[1752254046134,0.07701254,117670.0,117660.0,1.22668622]
[1752254046337,0.07701254,117670.0,117660.0,1.83232622]
[1752254046534,0.07701254,117670.0,117660.0,1.43083275]
[1752254046835,0.10856254,117670.0,117660.0,1.43083275]
[1752254047036,0.15542254,117670.0,117660.0,1.43083275]
[1752254047227,0.10856254,117670.0,117660.0,1.43083275]
[1752254048238,0.04767957,117670.0,117660.0,1.43083275]
[1752254049638,0.26364147,117670.0,117660.0,0.82519275]
[1752254049838,0.26364147,117670.0,117660.0,1.43091275]
[1752254050436,0.73320889,117670.0,117660.0,0.74024215]
[1752254050636,1.33896889,117670.0,117660.0,0.31674215]
[1752254050834,1.40516889,117670.0,117660.0,0.2486682]
[1752254052639,0.79940889,117670.0,117660.0,0.2486682]
[1752254052841,1.40516889,117670.0,117660.0,0.2486682]
[1752254053042,1.40516889,117670.0,117660.0,0.2811682]
[1752254054340,1.40518369,117670.0,117660.0,0.2811682]
[1752254055238,0.79942459,117670.0,117660.0,0.2811682]
[1752254055441,0.73300957,117670.0,117660.0,0.6421682]
[1752254055636,0.01632957,117670.0,117660.0,1.11173562]
[1752254055837,0.01632957,117670.0,117660.0,1.14173562]
[1752254056142,0.01632957,117670.0,117660.0,1.74749562]
[1752254056340,0.01632957,117670.0,117660.0,1.2779282]
[1752254056637,0.01632957,117670.0,117660.0,0.6721682]
[1752254056843,0.01632957,117670.0,117660.0,1.2779682]
[1752254059734,0.01632957,117670.0,117660.0,1.74753562]
[1752254060541,0.002,117690.0,117680.0,0.26633383]
[1752254060839,0.7348105,117690.0,117680.0,0.29863383]
[1752254061040,0.66581515,117690.0,117680.0,0.33123383]
[1752254061245,0.66581515,117690.0,117680.0,0.07858]
[1752254061542,0.66581515,117690.0,117660.0,0.07858]
[1752254061543,0.2473677,117670.0,117660.0,0.07858]
[1752254061735,0.2013122,117660.0,117650.0,0.09620738]
[1752254061936,1.07185427,117660.0,117650.0,0.26614398]
[1752254062136,1.07185427,117660.0,117650.0,0.09620738]
[1752254062547,1.07185427,117660.0,117650.0,0.26614398]
[1752254063346,1.1409612,117660.0,117650.0,0.26614398]
[1752254063747,1.1409612,117660.0,117650.0,0.04912738]
[1752254063937,1.1409612,117660.0,117650.0,0.01762738]
[1752254064542,1.1409612,117660.0,117650.0,0.18756398]
[1752254065546,1.21012433,117660.0,117650.0,0.18756398]
[1752254065746,1.21112433,117660.0,117650.0,0.18756398]
[1752254066146,1.21212433,117660.0,117650.0,0.18756398]
[1752254066454,1.21112433,117660.0,117650.0,0.18756398]
[1752254066654,1.21212433,117660.0,117650.0,0.18756398]
[1752254067256,1.272869,117660.0,117650.0,0.18756398]
[1752254068049,1.272869,117660.0,117650.0,0.21906398]
[1752254068354,1.272869,117660.0,117650.0,0.18756398]
[1752254068355,1.89433174,117660.0,117650.0,0.18756398]
[1752254068555,1.89433174,117660.0,117650.0,0.26614398]
[1752254068752,1.28857174,117660.0,117650.0,0.26614398]
[1752254068951,1.28857174,117660.0,117650.0,0.2485166]
[1752254068952,1.21212433,117660.0,117650.0,0.2485166]
[1752254069152,1.81788433,117660.0,117650.0,0.2794166]
[1752254069552,1.87889263,117660.0,117650.0,0.2794166]
[1752254070557,0.91233263,117660.0,117650.0,0.2794166]
[1752254070754,1.84729263,117660.0,117650.0,0.21911236]
[1752254070961,1.45778433,117660.0,117650.0,0.54841236]
[1752254071156,0.03339,117660.0,117650.0,0.62699236]
[1752254071356,0.27960758,117660.0,117650.0,0.68769236]
[1752254071557,0.15577506,117660.0,117650.0,0.68769236]
[1752254073161,0.10890544,117660.0,117650.0,2.36885136]
[1752254074859,0.10790544,117660.0,117650.0,2.36885136]
[1752254075058,0.10790544,117660.0,117650.0,2.36985136]
[1752254075362,0.10690544,117660.0,117650.0,2.36985136]
[1752254075558,0.10790544,117660.0,117650.0,2.36985136]
[1752254076062,0.10790544,117660.0,117650.0,2.83974336]
[1752254076560,0.001,117660.0,117650.0,2.83974336]
[1752254077661,0.001,117660.0,117650.0,3.16975136]
[1752254077861,0.10810544,117660.0,117650.0,3.16995136]
[1752254078463,0.18447054,117660.0,117650.0,3.16995136]
[1752254078654,0.0775651,117660.0,117650.0,3.16995136]
[1752254082167,0.1108351,117660.0,117650.0,3.16995136]
[1752254082368,0.1576151,117660.0,117650.0,3.16995136]
[1752254082962,0.1108351,117660.0,117650.0,3.16995136]
[1752254083467,0.1098351,117660.0,117650.0,3.16995136]
[1752254083865,0.1566151,117660.0,117650.0,2.70027236]
[1752254084065,0.3265375,117660.0,117650.0,2.6825966]
[1752254084262,0.7198514,117660.0,117650.0,2.3217966]
[1752254084468,0.89105684,117660.0,117650.0,2.2911366]
[1752254084670,0.89105684,117660.0,117650.0,0.2497166]
[1752254084859,0.82216251,117660.0,117650.0,0.2497166]
[1752254085266,0.82216251,117660.0,117650.0,0.1711366]
[1752254085570,1.18296251,117660.0,117650.0,0.0012]
[1752254085768,1.07605707,117660.0,117650.0,0.1711368]
[1752254086370,0.71525707,117660.0,117650.0,0.1711368]
[1752254086670,1.07605707,117660.0,117650.0,0.1711368]
[1752254086870,1.14496306,117660.0,117650.0,0.1711368]
[1752254087566,1.16125201,117660.0,117650.0,0.1711368]
[1752254087871,1.26815745,117660.0,117650.0,0.1711368]
[1752254088171,0.2500161,117630.0,117620.0,0.1699806]
[1752254088369,1.7471267,117630.0,117620.0,0.1699806]
[1752254088666,1.8125267,117630.0,117620.0,0.1699806]
[1752254088873,0.2500306,117620.0,117610.0,0.12748812]
[1752254089070,0.53495473,117620.0,117610.0,0.249265]